fUST/lending_fUST_20250112
["ID","MTS","AMOUNT","RATE_DAILY","PERIOD"]
[348617876,1736677840646,-588.68497984,0.00019177,2]
[348617878,1736677840656,-500.0,0.00019177,2]
[348617880,1736677840665,-500.0,0.00019177,2]
[348617881,1736677840674,-372.78553753,0.00019177,2]
[348617884,1736677840683,-500.0,0.00019177,2]
[348617886,1736677840692,-500.0,0.00019177,2]
[348617888,1736677840701,-500.0,0.00019177,2]
[348617889,1736677840710,-500.0,0.00019177,2]
[348617891,1736677840719,-500.0,0.00019177,2]
[348617893,1736677840729,-500.0,0.00019177,2]
[348617895,1736677840738,-500.0,0.00019177,2]
[348617898,1736677840747,-500.0,0.00019177,2]
[348617900,1736677840757,-500.0,0.00019177,2]
[348617902,1736677840766,-500.0,0.00019177,2]
[348617904,1736677840775,-500.0,0.00019177,2]
[348617906,1736677840784,-500.0,0.00019177,2]
[348617908,1736677840793,-500.0,0.00019177,2]
[348617910,1736677840802,-500.0,0.00019177,2]
[348617912,1736677840811,-500.0,0.00019177,2]
[348617914,1736677840820,-500.0,0.00019177,2]
[348617916,1736677840828,-500.0,0.00019177,2]
[348617918,1736677840837,-650.0,0.00019177,2]
[348617920,1736677840846,-200.0,0.00019177,2]
[348617922,1736677840856,-250.0,0.00019177,2]
[348617924,1736677840865,-500.0,0.00019177,2]
[348617925,1736677840875,-500.0,0.00019177,2]
[348617927,1736677840884,-500.0,0.00019177,2]
[348617930,1736677840893,-500.0,0.00019177,2]
[348617932,1736677840902,-500.0,0.00019177,2]
[348617934,1736677840912,-500.0,0.00019177,2]
[348617936,1736677840921,-500.0,0.00019177,2]
[348617938,1736677840930,-500.0,0.00019177,2]
[348617940,1736677840939,-500.0,0.00019177,2]
[348617942,1736677840948,-431.29291205,0.00019177,2]
[348617944,1736677840957,-500.0,0.00019177,2]
[348617946,1736677840972,-500.0,0.00019177,2]
[348617948,1736677840981,-500.0,0.00019177,2]
[348617950,1736677840990,-500.0,0.00019177,2]
[348617952,1736677840999,-500.0,0.00019177,2]
[348617954,1736677841009,-500.0,0.00019177,2]
[348617955,1736677841018,-650.0,0.00019177,2]
[348617958,1736677841027,-172.35290203,0.00019177,2]
[348617960,1736677841039,-600.0,0.00019177,2]
[348617962,1736677841049,-500.0,0.00019177,2]
[348617964,1736677841058,-500.0,0.00019177,2]
[348617966,1736677841067,-500.0,0.00019177,2]
[348617968,1736677841077,-500.0,0.00019177,2]
[348617970,1736677841086,-500.0,0.00019177,2]
[348617972,1736677841095,-500.0,0.00019177,2]
[348617974,1736677841104,-500.0,0.00019177,2]
[348617976,1736677841116,-500.0,0.00019177,2]
[348617978,1736677841125,-500.0,0.00019177,2]
[348617980,1736677841134,-500.0,0.00019177,2]
[348617982,1736677841143,-500.0,0.00019177,2]
[348617984,1736677841153,-500.0,0.00019177,2]
[348617986,1736677841161,-500.0,0.00019177,2]
[348617988,1736677841171,-500.0,0.00019177,2]
[348617990,1736677841180,-500.0,0.00019177,2]
[348617992,1736677841189,-500.0,0.00019177,2]
[348617994,1736677841198,-167.92858678,0.00019177,2]
[348617997,1736677841208,-467.21865607,0.00019177,2]
[348617999,1736677841217,-500.0,0.00019177,2]
[348618001,1736677841226,-500.0,0.00019177,2]
[348618003,1736677841235,-500.0,0.00019177,2]
[348618005,1736677841244,-500.0,0.00019177,2]
[348618007,1736677841253,-90.02577487,0.00019177,2]
[348618009,1736677841265,-409.97422513,0.00019177,2]
[348618011,1736677841274,-500.0,0.00019177,2]
[348618013,1736677841284,-500.0,0.00019177,2]
[348618015,1736677841293,-500.0,0.00019177,2]
[348618017,1736677841302,-499.99999999,0.00019177,2]
[348618019,1736677841312,-500.0,0.00019177,2]
[348618021,1736677841322,-500.0,0.00019177,2]
[348618023,1736677841331,-640.42626466,0.00019177,2]
[348618025,1736677841340,-163.997609,0.00019177,2]
[348618027,1736677841349,-169.71225271,0.00019177,2]
[348618029,1736677841359,-500.0,0.00019177,2]
[348618031,1736677841368,-500.0,0.00019177,2]
[348618033,1736677841378,-410.33646406,0.00019177,2]
[348618035,1736677841387,-500.0,0.00019177,2]
[348618037,1736677841396,-500.0,0.00019177,2]
[348618039,1736677841405,-500.0,0.00019177,2]
[348618041,1736677841415,-590.27091769,0.00019177,2]
[348618043,1736677841424,-230.52860314,0.00019178,5]
[348618045,1736677841433,-500.0,0.00019178,2]
[348618047,1736677841443,-500.0,0.00019178,2]
[348618049,1736677841452,-500.0,0.00019178,2]
[348618051,1736677841461,-500.0,0.00019178,2]
[348618053,1736677841470,-500.0,0.00019178,2]
[348618055,1736677841480,-500.0,0.00019178,2]
[348618057,1736677841489,-500.0,0.00019178,2]
[348618059,1736677841498,-500.0,0.00019178,2]
[348618061,1736677841509,-284.1293292,0.00019178,2]
[348618063,1736677841517,-500.0,0.00019178,2]
[348618065,1736677841527,-500.0,0.00019178,2]
[348618067,1736677841536,-500.0,0.00019178,2]
[348618069,1736677841545,-500.0,0.00019178,2]
[348618071,1736677841554,-8320.17,0.00019178,2]
[348618073,1736677841563,-1356.48,0.00019178,2]
[348618075,1736677841572,-500.0,0.00019178,2]
[348618078,1736677841582,-500.0,0.00019178,2]
[348618079,1736677841591,-500.0,0.00019178,2]
[348618081,1736677841600,-500.0,0.00019178,2]
[348618083,1736677841609,-500.0,0.00019178,2]
[348618085,1736677841618,-500.0,0.00019178,2]
[348618088,1736677841627,-500.0,0.00019178,2]
[348618090,1736677841637,-500.0,0.00019178,2]
[348618091,1736677841646,-1146.05,0.00019178,2]
[348618093,1736677841655,-500.0,0.00019178,2]
[348618096,1736677841665,-500.0,0.00019178,2]
[348618098,1736677841675,-500.0,0.00019178,2]
[348618100,1736677841684,-500.0,0.00019178,2]
[348618102,1736677841693,-500.0,0.00019178,2]
[348618104,1736677841702,-487.09699117,0.00019178,2]
[348618106,1736677841711,-532.66,0.00019178,2]
[348618108,1736677841720,-962.15,0.00019178,2]
[348618110,1736677841729,-500.0,0.00019178,2]
[348618112,1736677841739,-500.0,0.00019178,2]
[348618114,1736677841749,-506.39,0.00019178,2]
[348618116,1736677841760,-151.76469852,0.00019178,2]
[348618118,1736677841770,-500.0,0.00019178,2]
[348618120,1736677841779,-500.0,0.00019178,2]
[348618122,1736677841788,-500.0,0.00019178,2]
[348618124,1736677841797,-591.89,0.00019178,2]
[348618126,1736677841806,-533.51,0.00019178,2]
[348618128,1736677841815,-1031.02,0.00019178,2]
[348618130,1736677841824,-500.0,0.00019178,2]
[348618132,1736677841835,-500.0,0.00019178,2]
[348618134,1736677841844,-559.60761593,0.00019178,2]
[348618136,1736677841853,-500.0,0.00019178,2]
[348618138,1736677841862,-500.0,0.00019178,2]
[348618140,1736677841871,-500.0,0.00019178,2]
[348618142,1736677841880,-500.0,0.00019178,2]
[348618144,1736677841890,-500.0,0.00019178,2]
[348618146,1736677841899,-500.0,0.00019178,2]
[348618148,1736677841908,-875.87,0.00019178,2]
[348618150,1736677841917,-500.0,0.00019178,2]
[348618152,1736677841926,-500.0,0.00019178,2]
[348618154,1736677841936,-500.0,0.00019178,2]
[348618157,1736677841946,-351.68758016,0.00019178,2]
[348618159,1736677841956,-500.0,0.00019178,2]
[348618161,1736677841969,-500.0,0.00019178,2]
[348618163,1736677841979,-173.91746197,0.00019178,2]
[348618327,1736677843528,-912.77856996,0.00019178,2]
[348618527,1736677846413,-2051.73172906,0.00018986,2]
[348618687,1736678244685,164.17615,0.00013973,2]
[348618688,1736678285457,500.0,0.00024,120]
[348618689,1736678304620,500.0,0.00024,120]
[348618690,1736678317045,500.0,0.00025,120]
[348618691,1736678343173,700.0,0.00025,120]
[348618693,1736678835121,-183.72572381,0.00018056,2]
[348618722,1736679032640,-5000.0,0.00017696,2]
[348618723,1736679032650,-452.56199167,0.00017875,2]
[348618724,1736679032659,-127.1072573,0.00017956,2]
[348618725,1736679032671,-69.49568731,0.00017956,2]
[348618726,1736679032680,-2030.74287359,0.00018069,2]
[348618727,1736679032747,-22869.25712641,0.00018069,2]
[348618728,1736679032756,-11126.68982991,0.00018515,2]
[348618729,1736679032765,-11126.68982991,0.00018798,2]
[348618730,1736679032775,-507.567,0.00019,2]
[348618731,1736679032783,-199.53493468,0.00019,2]
[348618732,1736679032793,-500.0,0.00019099,2]
[348618733,1736679032802,-500.0,0.00019099,2]
[348618734,1736679032811,-159.03254578,0.00019099,2]
[348618735,1736679032821,-541.37254467,0.00019099,2]
[348618736,1736679032830,-500.0,0.00019099,2]
[348618737,1736679032840,-500.0,0.00019099,2]
[348618738,1736679032849,-42952.52413702,0.000191,2]
[348618739,1736679032859,-7165.10696355,0.0001917,2]
[348618769,1736679038525,-5000.0,0.00017519,2]
[348618771,1736679038534,-500.0,0.00019099,2]
[348618773,1736679038544,-461.27343458,0.00019099,2]
[348618775,1736679038553,-500.0,0.00019099,2]
[348618777,1736679038562,-500.0,0.00019099,2]
[348618780,1736679038573,-279.05900025,0.00019099,2]
[348618782,1736679038582,-3961.58286636,0.0001917,2]
[348618784,1736679038591,-499.0,0.00019177,2]
[348618797,1736679038706,-468.7985769,0.00019177,2]
[348618799,1736679038716,-15211.85807776,0.00019178,5]
[348618801,1736679038726,-16330.97880988,0.00019178,5]
[348618804,1736679038736,-500.0,0.00019178,2]
[348618807,1736679038746,-500.0,0.00019178,2]
[348618809,1736679038755,-500.0,0.00019178,2]
[348618811,1736679038766,-500.0,0.00019178,2]
[348618813,1736679038776,-500.0,0.00019178,2]
[348618815,1736679038786,-500.0,0.00019178,2]
[348618818,1736679038797,-500.0,0.00019178,2]
[348618819,1736679038806,-500.0,0.00019178,2]
[348618822,1736679038815,-500.0,0.00019178,2]
[348618824,1736679038824,-505.5178555,0.00019178,2]
[348618826,1736679038833,-151.01623333,0.00019178,2]
[348618828,1736679038842,-500.0,0.00019178,2]
[348618829,1736679038851,-505.57364026,0.00019178,2]
[348618831,1736679038860,-612.21249768,0.00019178,2]
[348618833,1736679038869,-500.0,0.00019178,2]
[348618836,1736679038879,-500.0,0.00019178,2]
[348618837,1736679038887,-500.0,0.00019178,2]
[348618840,1736679038897,-464.43180156,0.00019178,2]
[348618842,1736679038907,-730.68,0.00019178,2]
[348618844,1736679038916,-730.68,0.00019178,2]
[348618845,1736679038925,-730.68,0.00019178,2]
[348618847,1736679038934,-730.68,0.00019178,2]
[348618849,1736679038944,-730.68,0.00019178,2]
[348618852,1736679038953,-730.68,0.00019178,2]
[348618854,1736679038962,-730.68,0.00019178,2]
[348618856,1736679038972,-1009.53,0.00019178,2]
[348618858,1736679038982,-730.68,0.00019178,2]
[348618860,1736679038992,-730.68,0.00019178,2]
[348618862,1736679039001,-730.68,0.00019178,2]
[348618864,1736679039011,-730.68,0.00019178,2]
[348618866,1736679039021,-502.73242723,0.00019178,2]
[348618868,1736679039030,-325.40911471,0.00019178,2]
[348618870,1736679039039,-500.0,0.00019178,2]
[348618872,1736679039048,-500.0,0.00019178,2]
[348618874,1736679039057,-504.16,0.00019178,2]
[348618876,1736679039066,-500.0,0.00019178,2]
[348618878,1736679039075,-500.0,0.00019178,2]
[348618880,1736679039085,-1130.36,0.00019178,2]
[348618882,1736679039094,-500.0,0.00019178,2]
[348618884,1736679039103,-500.0,0.00019178,2]
[348618886,1736679039112,-500.0,0.00019178,2]
[348618888,1736679039121,-922.06,0.00019178,2]
[348618890,1736679039130,-500.0,0.00019178,2]
[348618892,1736679039139,-500.0,0.00019178,2]
[348618894,1736679039148,-245.52197708,0.00019178,2]
[348618896,1736679039157,-636.5496638,0.00019178,2]
[348618898,1736679039167,-552.13,0.00019178,2]
[348618900,1736679039175,-500.0,0.00019178,2]
[348618902,1736679039184,-526.95,0.00019178,2]
[348618904,1736679039193,-588.06,0.00019178,2]
[348618906,1736679039204,-500.0,0.00019178,2]
[348618908,1736679039213,-612.28227195,0.00019178,2]
[348618910,1736679039223,-526.62736736,0.00019178,2]
[348618912,1736679039232,-500.0,0.00019178,2]
[348618914,1736679039241,-500.0,0.00019178,2]
[348618916,1736679039250,-500.0,0.00019178,2]
[348618918,1736679039259,-500.0,0.00019178,2]
[348618920,1736679039269,-500.0,0.00019178,2]
[348618922,1736679039278,-1050.56,0.00019178,2]
[348618924,1736679039287,-530.54753525,0.00019178,2]
[348618926,1736679039296,-188.0,0.00019178,2]
[348618928,1736679039307,-1071.9,0.00019178,2]
[348618930,1736679039316,-532.12,0.00019178,2]
[348618932,1736679039325,-500.0,0.00019178,2]
[348618934,1736679039335,-500.0,0.00019178,2]
[348618936,1736679039344,-500.0,0.00019178,2]
[348618938,1736679039353,-500.0,0.00019178,2]
[348618940,1736679039363,-500.0,0.00019178,2]
[348618942,1736679039372,-901.88,0.00019178,2]
[348618944,1736679039381,-500.0,0.00019178,2]
[348618946,1736679039390,-500.0,0.00019178,2]
[348618948,1736679039400,-500.0,0.00019178,2]
[348618951,1736679039410,-500.0,0.00019178,2]
[348618952,1736679039419,-500.0,0.00019178,2]
[348618955,1736679039428,-500.0,0.00019178,2]
[348618956,1736679039438,-500.0,0.00019178,2]
[348618959,1736679039447,-500.0,0.00019178,2]
[348618960,1736679039456,-500.0,0.00019178,2]
[348618963,1736679039466,-500.0,0.00019178,2]
[348618965,1736679039475,-500.0,0.00019178,2]
[348618966,1736679039484,-347.41371093,0.00019178,2]
[348618969,1736679039493,-519.94531772,0.00019178,2]
[348618971,1736679039503,-500.0,0.00019178,2]
[348618973,1736679039512,-1186.63,0.00019178,2]
[348618974,1736679039521,-417.54110044,0.00019178,2]
[348618977,1736679039531,-500.0,0.00019178,2]
[348618979,1736679039540,-500.0,0.00019178,2]
[348618981,1736679039549,-500.0,0.00019178,2]
[348618982,1736679039558,-500.0,0.00019178,2]
[348618985,1736679039567,-500.0,0.00019178,2]
[348618987,1736679039576,-500.0,0.00019178,2]
[348618989,1736679039586,-500.0,0.00019178,2]
[348618991,1736679039595,-500.0,0.00019178,2]
[348618993,1736679039604,-500.0,0.00019178,2]
[348618994,1736679039613,-500.0,0.00019178,2]
[348618995,1736679039622,-500.0,0.00019178,2]
[348618996,1736679039631,-500.0,0.00019178,2]
[348618997,1736679039640,-500.0,0.00019178,2]
[348618998,1736679039653,-500.0,0.00019178,2]
[348618999,1736679039662,-500.0,0.00019178,2]
[348619000,1736679039671,-993.36,0.00019178,2]
[348619001,1736679039679,-500.0,0.00019178,2]
[348619002,1736679039690,-500.0,0.00019178,2]
[348619003,1736679039699,-500.0,0.00019178,2]
[348619004,1736679039708,-500.0,0.00019178,2]
[348619005,1736679039718,-500.0,0.00019178,2]
[348619006,1736679039730,-500.0,0.00019178,2]
[348619007,1736679039740,-500.0,0.00019178,2]
[348619008,1736679039749,-500.0,0.00019178,2]
[348619009,1736679039758,-500.0,0.00019178,2]
[348619010,1736679039767,-500.0,0.00019178,2]
[348619011,1736679039776,-500.0,0.00019178,2]
[348619012,1736679039785,-509.91,0.00019178,2]
[348619013,1736679039793,-307.06,0.00019178,2]
[348619015,1736679039802,-1023.04,0.00019178,2]
[348619017,1736679039811,-500.0,0.00019178,2]
[348619019,1736679039821,-500.0,0.00019178,2]
[348619021,1736679039829,-500.0,0.00019178,2]
[348619023,1736679039838,-500.0,0.00019178,2]
[348619025,1736679039847,-500.0,0.00019178,2]
[348619027,1736679039856,-500.0,0.00019178,2]
[348619029,1736679039865,-5766.7,0.00019178,2]
[348619031,1736679039874,-302.64643313,0.00019178,2]
[348619033,1736679039883,-500.0,0.00019178,2]
[348619035,1736679039893,-2985.62,0.00019178,2]
[348619037,1736679039902,-500.0,0.00019178,2]
[348619039,1736679039911,-500.0,0.00019178,2]
[348619041,1736679039921,-8286.71,0.00019178,2]
[348619043,1736679039930,-1546.65,0.00019178,2]
[348619045,1736679039939,-500.0,0.00019178,2]
[348619048,1736679039949,-500.0,0.00019178,2]
[348619051,1736679039958,-500.0,0.00019178,2]
[348619054,1736679039967,-1231.85,0.00019178,2]
[348619057,1736679039976,-500.0,0.00019178,2]
[348619060,1736679039985,-500.0,0.00019178,2]
[348619063,1736679039994,-1616.68,0.00019178,2]
[348619066,1736679040003,-500.0,0.00019178,2]
[348619069,1736679040012,-500.0,0.00019178,2]
[348619072,1736679040021,-500.0,0.00019178,2]
[348619074,1736679040030,-5066.24346091,0.00019178,2]
[348619081,1736679040076,-30691.64653909,0.00019178,2]
[348619084,1736679040085,-500.0,0.00019178,2]
[348619086,1736679040094,-500.0,0.00019178,2]
[348619088,1736679040103,-1480.95,0.00019178,2]
[348619090,1736679040112,-500.0,0.00019178,2]
[348619091,1736679040121,-790.09,0.00019178,2]
[348619094,1736679040130,-1272.37,0.00019178,2]
[348619096,1736679040139,-895.78,0.00019178,2]
[348619097,1736679040148,-8066.92,0.00019178,2]
[348619099,1736679040158,-500.0,0.00019178,2]
[348619102,1736679040167,-353.38127687,0.00019178,2]
[348619104,1736679040176,-500.0,0.00019178,2]
[348619106,1736679040185,-3296.61,0.00019178,2]
[348619108,1736679040195,-1504.03,0.00019178,2]
[348619110,1736679040204,-4817.46,0.00019178,2]
[348619112,1736679040213,-1456.68,0.00019178,2]
[348619114,1736679040224,-500.0,0.00019178,2]
[348619116,1736679040232,-500.0,0.00019178,2]
[348619117,1736679040243,-500.0,0.00019178,2]
[348619119,1736679040253,-500.0,0.00019178,2]
[348619121,1736679040262,-753.64,0.00019178,2]
[348619123,1736679040272,-500.0,0.00019178,2]
[348619125,1736679040281,-1013.19,0.00019178,2]
[348619127,1736679040290,-500.0,0.00019178,2]
[348619130,1736679040302,-500.0,0.00019178,2]
[348619131,1736679040311,-500.0,0.00019178,2]
[348619133,1736679040320,-500.0,0.00019178,2]
[348619136,1736679040330,-489.25939537,0.00019178,2]
[348619138,1736679040339,-500.0,0.00019178,2]
[348619140,1736679040349,-1326.01,0.00019178,2]
[348619142,1736679040357,-500.0,0.00019178,2]
[348619144,1736679040367,-500.0,0.00019178,2]
[348619146,1736679040376,-572.17,0.00019178,2]
[348619148,1736679040384,-540.39,0.00019178,2]
[348619150,1736679040393,-500.0,0.00019178,2]
[348619152,1736679040402,-500.0,0.00019178,2]
[348619154,1736679040411,-500.0,0.00019178,2]
[348619156,1736679040420,-500.0,0.00019178,2]
[348619158,1736679040429,-974.74,0.00019178,2]
[348619160,1736679040439,-500.0,0.00019178,2]
[348619162,1736679040447,-500.0,0.00019178,2]
[348619164,1736679040457,-500.0,0.00019178,2]
[348619166,1736679040465,-500.0,0.00019178,2]
[348619168,1736679040474,-500.0,0.00019178,2]
[348619170,1736679040483,-2678.52,0.00019178,2]
[348619172,1736679040492,-506.98,0.00019178,2]
[348619174,1736679040501,-500.0,0.00019178,2]
[348619176,1736679040510,-500.0,0.00019178,2]
[348619177,1736679040519,-539.59670591,0.00019178,2]
[348619180,1736679040528,-500.0,0.00019178,2]
[348619182,1736679040537,-500.0,0.00019178,2]
[348619183,1736679040546,-500.0,0.00019178,2]
[348619186,1736679040556,-1675.89,0.00019178,2]
[348619188,1736679040565,-500.0,0.00019178,2]
[348619190,1736679040574,-204.92962116,0.00019178,2]
[348619192,1736679040582,-500.0,0.00019178,2]
[348619194,1736679040591,-500.0,0.00019178,2]
[348619196,1736679040600,-2935.43,0.00019178,2]
[348619198,1736679040609,-500.0,0.00019178,2]
[348619200,1736679040618,-1422.38,0.00019178,2]
[348619202,1736679040627,-1401.57,0.00019178,2]
[348619204,1736679040636,-500.0,0.00019178,2]
[348619206,1736679040650,-500.0,0.00019178,2]
[348619208,1736679040659,-500.0,0.00019178,2]
[348619210,1736679040668,-501.05,0.00019178,2]
[348619221,1736679040760,-571.46,0.00019178,2]
[348619223,1736679040770,-500.0,0.00019178,2]
[348619225,1736679040779,-1451.35,0.00019178,2]
[348619227,1736679040788,-503.04208348,0.00019178,2]
[348619229,1736679040798,-500.0,0.00019178,2]
[348619231,1736679040807,-1101.57,0.00019178,2]
[348619233,1736679040816,-500.0,0.00019178,2]
[348619235,1736679040825,-500.0,0.00019178,2]
[348619237,1736679040834,-955.66,0.00019178,2]
[348619239,1736679040844,-500.76229939,0.00019178,2]
[348619241,1736679040853,-500.0,0.00019178,2]
[348619243,1736679040862,-500.0,0.00019178,2]
[348619245,1736679040871,-500.0,0.00019178,2]
[348619247,1736679040880,-500.0,0.00019178,2]
[348619249,1736679040889,-6797.93,0.00019178,2]
[348619251,1736679040898,-500.0,0.00019178,2]
[348619253,1736679040907,-394.29947492,0.00019178,2]
[348619255,1736679040916,-482.10759086,0.00019178,2]
[348619257,1736679040925,-503.12539118,0.00019178,2]
[348619259,1736679040934,-161.952255,0.00019178,2]
[348619261,1736679040943,-155.32,0.00019178,2]
[348619263,1736679040952,-371.2358012,0.000192,2]
[348619265,1736679040961,-1140.28071903,0.00019372,2]
[348619267,1736679040970,-730.68,0.00019451,3]
[348619269,1736679040979,-730.68,0.00019451,3]
[348619271,1736679040988,-730.68,0.00019451,3]
[348619273,1736679040997,-730.68,0.00019451,3]
[348619275,1736679041006,-730.68,0.00019451,3]
[348619277,1736679041015,-730.68,0.00019451,3]
[348619279,1736679041024,-730.68,0.00019451,3]
[348619281,1736679041034,-730.68,0.00019451,3]
[348619283,1736679041043,-155.559831,0.00019452,2]
[348619285,1736679041052,-181.037859,0.00019452,2]
[348619287,1736679041062,-151.0,0.00019452,2]
[348619289,1736679041071,-151.0,0.00019452,2]
[348619291,1736679041080,-567.59856288,0.00019452,3]
[348619293,1736679041089,-500.0,0.00019452,3]
[348619295,1736679041098,-151.0,0.00019452,2]
[348619297,1736679041107,-151.0,0.00019452,2]
[348619300,1736679041117,-151.0,0.00019452,2]
[348619302,1736679041126,-500.0,0.00019452,3]
[348619304,1736679041135,-500.0,0.00019452,3]
[348619306,1736679041144,-500.0,0.00019452,3]
[348619308,1736679041153,-151.0,0.00019452,2]
[348619310,1736679041162,-152.790935,0.00019452,2]
[348619312,1736679041171,-500.0,0.00019452,3]
[348619314,1736679041181,-500.0,0.00019452,3]
[348619315,1736679041191,-500.0,0.00019452,3]
[348619318,1736679041200,-151.0,0.00019452,2]
[348619319,1736679041210,-268.497498,0.00019452,2]
[348619322,1736679041219,-1009.53,0.00019452,3]
[348619324,1736679041228,-500.0,0.00019452,3]
[348619326,1736679041238,-899.827721,0.00019452,2]
[348619327,1736679041247,-899.827721,0.00019452,2]
[348619329,1736679041256,-504.16,0.00019452,3]
[348619331,1736679041265,-899.827721,0.00019452,2]
[348619333,1736679041274,-899.827721,0.00019452,2]
[348619335,1736679041283,-500.0,0.00019452,3]
[348619337,1736679041292,-151.0,0.00019452,2]
[348619339,1736679041302,-151.93943,0.00019452,2]
[348619341,1736679041311,-298.670605,0.00019452,2]
[348619343,1736679041321,-1130.36,0.00019452,3]
[348619345,1736679041330,-500.0,0.00019452,3]
[348619347,1736679041339,-922.06,0.00019452,3]
[348619349,1736679041348,-500.0,0.00019452,3]
[348619352,1736679041358,-500.0,0.00019452,3]
[348619354,1736679041367,-552.13,0.00019452,3]
[348619356,1736679041376,-526.95,0.00019452,3]
[348619358,1736679041385,-588.06,0.00019452,3]
[348619360,1736679041394,-151.0,0.00019452,2]
[348619362,1736679041403,-151.0,0.00019452,2]
[348619364,1736679041412,-500.0,0.00019452,3]
[348619366,1736679041421,-500.0,0.00019452,3]
[348619368,1736679041430,-500.0,0.00019452,3]
[348619370,1736679041439,-500.0,0.00019452,3]
[348619372,1736679041448,-500.0,0.00019452,3]
[348619374,1736679041457,-1050.56,0.00019452,3]
[348619376,1736679041466,-232.0143209,0.00019452,2]
[348619378,1736679041475,-1071.9,0.00019452,3]
[348619380,1736679041484,-151.0,0.00019452,2]
[348619382,1736679041493,-532.12,0.00019452,3]
[348619384,1736679041502,-151.0,0.00019452,2]
[348619386,1736679041511,-165.458668,0.00019452,2]
[348619388,1736679041520,-500.0,0.00019452,3]
[348619390,1736679041529,-500.0,0.00019452,3]
[348619391,1736679041538,-901.88,0.00019452,3]
[348619393,1736679041547,-500.0,0.00019452,3]
[348619396,1736679041557,-356.04292318,0.00019452,3]
[348619397,1736679041566,-305.43559022,0.00019452,3]
[348619399,1736679041575,-500.0,0.00019452,3]
[348619401,1736679041584,-500.0,0.00019452,3]
[348619403,1736679041593,-500.0,0.00019452,3]
[348619405,1736679041602,-500.0,0.00019452,3]
[348619407,1736679041611,-500.0,0.00019452,3]
[348619409,1736679041620,-500.0,0.00019452,3]
[348619411,1736679041629,-500.0,0.00019452,3]
[348619414,1736679041638,-151.0,0.00019452,2]
[348619415,1736679041651,-151.0,0.00019452,2]
[348619417,1736679041661,-500.0,0.00019452,3]
[348619419,1736679041670,-151.0,0.00019452,2]
[348619421,1736679041679,-151.0,0.00019452,2]
[348619423,1736679041690,-151.944476,0.00019452,2]
[348619425,1736679041699,-1186.63,0.00019452,3]
[348619427,1736679041708,-152.894291,0.00019452,2]
[348619429,1736679041718,-161.527915,0.00019452,2]
[348619432,1736679041727,-500.0,0.00019452,3]
[348619434,1736679041736,-500.0,0.00019452,2]
[348619436,1736679041745,-500.0,0.00019452,3]
[348619438,1736679041755,-500.0,0.00019452,3]
[348619440,1736679041764,-492.44840629,0.00019452,3]
[348619442,1736679041773,-500.0,0.00019452,3]
[348619444,1736679041782,-500.0,0.00019452,3]
[348619446,1736679041791,-500.0,0.00019452,3]
[348619448,1736679041800,-500.0,0.00019452,3]
[348619450,1736679041809,-500.0,0.00019452,3]